bitfinex-derivatives/quotes_BTCF0:USTF0_20251120
["timestamp","ask_amount","ask_price","bid_price","bid_amount"]
[1763670758364,0.00219803,87009.0,87008.0,0.15922]
[1763670758562,0.00219803,87009.0,87008.0,0.15978065]
[1763670759059,0.00017232,87016.0,87015.0,0.15922]
[1763670759264,0.0024519,87016.0,87015.0,0.15978065]
[1763670759673,0.0024519,87016.0,87015.0,0.17128905]
[1763670760678,0.04098507,87034.0,87033.0,0.15922]
[1763670760972,0.00219803,87034.0,87033.0,0.15978065]
[1763670762077,0.19086237,87034.0,87033.0,0.00056065]
[1763670762375,0.20236817,87034.0,87033.0,0.00056065]
[1763670762572,0.20336817,87034.0,87033.0,0.00056065]
[1763670763078,0.19186237,87034.0,87033.0,0.00056065]
[1763670764378,0.20336817,87034.0,87033.0,0.00056065]
[1763670764676,0.20236817,87034.0,87033.0,0.00056065]
[1763670764877,0.19086237,87034.0,87033.0,0.00056065]
[1763670765077,0.10555237,87034.0,87033.0,0.15978065]
[1763670765275,0.02180237,87034.0,87033.0,0.15978065]
[1763670765475,0.00017242,87042.0,87041.0,0.1707249]
[1763670765678,0.09117008,87054.0,87053.0,0.1707233]
[1763670765883,0.40142791,87074.0,87053.0,0.00056065]
[1763670766074,0.40142791,87074.0,87060.0,0.15922]
[1763670766075,0.0115024,87061.0,87060.0,0.15922]
[1763670766279,0.0115024,87061.0,87040.0,0.24925762]
[1763670766280,0.0115021,87063.0,87061.0,0.00056065]
[1763670766482,0.00219803,87062.0,87061.0,0.00056065]
[1763670766989,0.00219803,87062.0,87061.0,0.15978065]
[1763670767384,0.17125803,87062.0,87061.0,0.00056065]
[1763670767882,0.16906,87054.0,87053.0,0.00017232]
[1763670768076,0.18276123,87054.0,87053.0,0.00073297]
[1763670768381,0.17125803,87054.0,87053.0,0.00073297]
[1763670768583,0.00219803,87054.0,87053.0,0.17145627]
[1763670769079,0.00219803,87054.0,87053.0,0.15995297]
[1763670769475,0.08594803,87054.0,87053.0,0.15995297]
[1763670769871,0.17125803,87054.0,87053.0,0.00073297]
[1763670772184,0.08594803,87054.0,87053.0,0.08024297]
[1763670772480,0.00219803,87054.0,87053.0,0.15995297]
[1763670773188,0.01948956,87063.0,87062.0,0.1707221]
[1763670773386,0.0932738,87074.0,87062.0,0.1707221]
[1763670773387,0.01990008,87081.0,87071.0,0.15922]
[1763670773574,0.0115002,87077.0,87071.0,0.1707209]
[1763670773775,0.00219803,87072.0,87071.0,0.1707209]
[1763670774086,0.01985363,87077.0,87076.0,0.15922]
[1763670774281,0.00219803,87077.0,87076.0,0.15978065]
[1763670775288,0.08594803,87077.0,87076.0,0.15978065]
[1763670775987,0.00219803,87077.0,87076.0,0.17128095]
[1763670776181,0.08594803,87077.0,87076.0,0.15978065]
[1763670777177,0.17125803,87077.0,87076.0,0.15978065]
[1763670777488,0.17125803,87077.0,87076.0,0.00056065]
[1763670778990,0.17125803,87077.0,87046.0,0.0115043]
[1763670778991,0.05014,87074.0,87046.0,0.0115043]
[1763670779183,0.08375,87067.0,87054.0,0.00056065]
[1763670779383,0.00219803,87066.0,87065.0,0.07951]
[1763670779583,0.00219803,87066.0,87065.0,0.08007065]
[1763670779886,0.00219803,87066.0,87065.0,0.00056065]
[1763670779887,0.17125803,87066.0,87065.0,0.00056065]
[1763670780381,0.1805632,87054.0,87053.0,0.00017232]
[1763670780585,0.18276123,87054.0,87053.0,0.00017232]
[1763670780783,0.17125803,87054.0,87053.0,0.00017232]
[1763670780976,0.17125803,87054.0,87053.0,0.15995297]
[1763670780977,0.00219803,87054.0,87053.0,0.15995297]
[1763670781387,0.00017232,87062.0,87061.0,0.15922]
[1763670781682,0.00017232,87062.0,87053.0,0.00073297]
[1763670781683,0.1805632,87054.0,87053.0,0.00017232]
[1763670781888,0.18276123,87054.0,87053.0,0.00017232]
[1763670782076,0.0115046,87044.0,87035.0,0.0115056]
[1763670782388,0.05014,87061.0,87037.0,0.0115055]
[1763670782389,0.0115044,87045.0,87037.0,0.0115055]
[1763670782575,0.08375,87039.0,87038.0,0.00056065]
[1763670782780,0.08594803,87039.0,87038.0,0.08437065]
[1763670783580,0.08594803,87039.0,87038.0,0.16881065]
[1763670783775,0.00219803,87039.0,87038.0,0.16881065]
[1763670783987,0.00219803,87039.0,87038.0,0.18131595]
[1763670784689,0.00017232,87047.0,87046.0,0.1797543]
[1763670784888,0.00017232,87047.0,87046.0,0.18031495]
[1763670785079,0.00237035,87047.0,87046.0,0.16881065]
[1763670786285,0.00237035,87047.0,87046.0,0.16981065]
[1763670786980,0.00017232,87047.0,87046.0,0.16981065]
[1763670788177,0.10288794,87071.0,87046.0,0.16981065]
[1763670788178,0.08257621,87065.0,87060.0,0.16825]
[1763670788383,0.08257621,87065.0,87046.0,0.00156065]
[1763670788384,0.08462696,87065.0,87064.0,0.16825]
[1763670788585,0.08462696,87065.0,87064.0,0.16881065]
[1763670788586,0.00219803,87065.0,87064.0,0.16881065]
[1763670789497,0.08263645,87073.0,87072.0,0.1797508]
[1763670789689,0.00017232,87073.0,87072.0,0.18031145]
[1763670789891,0.01999248,87082.0,87081.0,0.16825]
[1763670790193,0.01369753,87082.0,87081.0,0.16881065]
[1763670790493,0.19201232,87082.0,87081.0,0.00056065]
[1763670790789,0.05131,87074.0,87057.0,0.0115028]
[1763670790991,0.011502,87064.0,87057.0,0.00056065]
[1763670791291,0.00219803,87058.0,87057.0,0.00056065]
[1763670791481,0.16046803,87058.0,87057.0,0.00056065]
[1763670791683,0.00219803,87058.0,87025.0,0.011507]
[1763670791887,0.00219803,87058.0,87032.0,0.16825]
[1763670791888,0.011506,87033.0,87032.0,0.16825]
[1763670792089,0.15827,87020.0,86980.0,0.16025872]
[1763670792291,0.25231164,87020.0,87013.0,0.00056065]
[1763670792492,0.00219803,87014.0,87013.0,0.16881065]
[1763670792690,0.05131,87035.0,87013.0,0.16881065]
[1763670792691,0.00017232,87022.0,87021.0,0.16825]
[1763670792884,0.00237035,87022.0,87021.0,0.16881065]
[1763670793087,0.00137035,87022.0,87021.0,0.16881065]
[1763670793589,0.07903035,87022.0,87021.0,0.00056065]
[1763670794093,0.00137035,87022.0,87021.0,0.16881065]
[1763670794495,0.08253384,87027.0,87026.0,0.1797569]
[1763670794698,0.00017232,87030.0,87029.0,0.16825]
[1763670794998,0.15998469,87030.0,87029.0,0.00138833]
[1763670795292,0.24251853,87030.0,87029.0,0.00138833]
[1763670795492,0.24251853,87030.0,87012.0,0.0001096]
[1763670795493,0.1697786,87013.0,87012.0,0.0001096]
[1763670795689,0.17132097,87013.0,87012.0,0.0001096]
[1763670795891,0.17132097,87013.0,86970.0,0.14874582]
[1763670795892,0.1697796,87006.0,86970.0,0.14874582]
[1763670796089,0.0628209,86996.0,86981.0,0.0115127]
[1763670796295,0.15827,86983.0,86982.0,0.00138833]
[1763670796591,0.15981237,86983.0,86982.0,0.00138833]
[1763670796983,0.02107619,86983.0,86982.0,0.00138833]
[1763670797187,0.00154237,86983.0,86982.0,0.16963833]
[1763670797488,0.02107228,86983.0,86982.0,0.16963833]
[1763670797686,0.06196689,86991.0,86989.0,0.1797618]
[1763670797887,0.00171481,86991.0,86990.0,0.16963833]
[1763670798491,0.0196116,86991.0,86990.0,0.16963833]
[1763670798886,0.06179445,87001.0,86999.0,0.16825]
[1763670799081,0.00154237,87005.0,87004.0,0.16825]
[1763670799283,0.00154237,87005.0,87004.0,0.16963833]
[1763670799487,0.01956832,87008.0,87007.0,0.16825]
[1763670799686,0.00154237,87008.0,87007.0,0.16963833]
[1763670800081,0.17965268,87008.0,87007.0,0.00138833]
[1763670801593,0.07766,87000.0,86999.0,0.00017244]
[1763670801900,0.15981237,87000.0,86999.0,0.00156077]
[1763670803298,0.15981237,87000.0,86999.0,0.01307127]
[1763670803697,0.00154237,87000.0,86999.0,0.18132127]
[1763670804396,0.15981237,87000.0,86999.0,0.00156077]
[1763670805194,0.15981237,87000.0,86999.0,0.00017244]
[1763670806390,0.15981237,87000.0,86970.0,0.19554582]
[1763670806691,0.15981237,87000.0,86950.0,0.00999999]
[1763670806692,0.1697835,86976.0,86975.0,0.00138833]
[1763670806898,0.15827,86960.0,86959.0,0.0115157]
[1763670807104,0.15981237,86960.0,86959.0,0.01290403]
[1763670807289,0.15981237,86960.0,86959.0,0.00138833]
[1763670807900,0.15981237,86960.0,86951.0,0.01168924]
[1763670807901,0.15827,86952.0,86951.0,0.01168924]
[1763670808207,0.00154237,86952.0,86951.0,0.18132757]
[1763670808507,0.0115148,86967.0,86951.0,0.00156077]
[1763670808806,0.07766,86961.0,86960.0,0.0115156]
[1763670809007,0.07920237,86961.0,86960.0,0.01290393]
[1763670809208,0.17132787,86961.0,86960.0,0.00138833]
[1763670809593,0.15827,86952.0,86951.0,0.00117244]
[1763670809900,0.1794916,86952.0,86951.0,0.00256077]
[1763670811108,0.0988816,86952.0,86951.0,0.01407757]
[1763670811301,0.0988816,86952.0,86948.0,0.00014504]
[1763670811506,0.0988816,86952.0,86949.0,0.0115171]
[1763670811806,0.0212216,86952.0,86951.0,0.14726]
[1763670812301,0.0212216,86952.0,86951.0,0.14826]
[1763670812807,0.1722816,86952.0,86951.0,0.07587]
[1763670813006,0.1837983,86952.0,86951.0,0.001]
[1763670813997,0.1722816,86952.0,86951.0,0.001]
[1763670814502,0.1722816,86952.0,86948.0,4e-08]
[1763670814503,0.14541,86949.0,86948.0,4e-08]
[1763670814704,0.0704,86923.0,86922.0,0.1579507]
[1763670814904,0.00219803,86923.0,86922.0,0.1579507]
[1763670815106,0.04301,86940.0,86934.0,0.011519]
[1763670815304,0.00219803,86939.0,86922.0,0.0115207]
[1763670815605,0.00219803,86939.0,86929.0,0.0115197]
[1763670815606,0.15812643,86939.0,86929.0,0.0115197]
[1763670815806,8.806e-05,86938.0,86930.0,0.001]
[1763670816101,0.00201876,86938.0,86937.0,0.1579487]
[1763670816297,0.00201876,86938.0,86937.0,0.1589487]
[1763670817009,0.15894736,86938.0,86937.0,0.001]
[1763670817305,0.07241876,86938.0,86937.0,0.14743]
[1763670817505,0.14742876,86938.0,86937.0,0.001]
[1763670818409,0.14742876,86938.0,86937.0,0.07378]
[1763670818908,0.15894736,86938.0,86937.0,0.001]
[1763670819108,0.14742876,86938.0,86937.0,0.001]
[1763670819410,0.14742876,86938.0,86937.0,0.14743]
[1763670819411,0.07241876,86938.0,86937.0,0.14743]
[1763670821403,0.00201876,86938.0,86937.0,0.14743]
[1763670821707,0.15894736,86938.0,86937.0,0.001]
[1763670822604,0.07501,86927.0,86926.0,0.0115201]
[1763670822811,0.00205649,86927.0,86926.0,0.1589501]
[1763670823505,0.00205649,86927.0,86892.0,0.03236]
[1763670823506,0.0019307,86927.0,86892.0,0.03236]
[1763670823707,0.14541,86917.0,86916.0,0.0125214]
[1763670823902,0.1463407,86917.0,86890.0,0.14874582]
[1763670824106,0.0819233,86902.0,86901.0,0.07378]
[1763670824294,0.0723307,86902.0,86901.0,0.07378]
[1763670824607,0.01358742,86902.0,86893.0,0.14643]
[1763670824794,0.00206402,86902.0,86901.0,0.14743]
[1763670825509,0.00206402,86902.0,86901.0,0.14843]
[1763670825705,0.14747402,86902.0,86901.0,0.002]
[1763670826204,0.1473407,86902.0,86901.0,0.001]
[1763670826706,0.0019307,86902.0,86870.0,0.14874582]
[1763670826900,0.0019307,86902.0,86877.0,0.001]
[1763670826901,0.0115243,86895.0,86877.0,0.001]
[1763670827102,0.04301,86892.0,86877.0,0.001]
[1763670827302,0.0115254,86887.0,86878.0,0.0115265]
[1763670827508,0.00204229,86886.0,86880.0,0.0115262]
[1763670827809,0.14745229,86886.0,86885.0,0.001]
[1763670828305,0.16747688,86886.0,86885.0,0.001]
[1763670828496,0.09246688,86886.0,86885.0,0.14743]
[1763670828698,0.02206688,86886.0,86885.0,0.14743]
[1763670828898,0.00011159,86886.0,86885.0,0.14743]
[1763670829102,0.09396858,86917.0,86892.0,0.01261]
[1763670829404,0.04301,86905.0,86893.0,0.001]
[1763670829603,0.14541,86902.0,86901.0,0.0115234]
[1763670829804,0.1473407,86902.0,86901.0,0.0125234]
[1763670830006,0.14740169,86902.0,86901.0,0.0125234]
[1763670830201,0.14740169,86902.0,86901.0,0.001]
[1763670830414,0.14740169,86902.0,86901.0,0.1589535]
[1763670830602,0.14740169,86902.0,86901.0,0.001]
[1763670831809,0.14740169,86902.0,86901.0,0.07378]
[1763670832210,0.14740169,86902.0,86901.0,0.14743]
[1763670832508,0.14740169,86902.0,86901.0,0.001]
[1763670833910,6e-08,86910.0,86909.0,0.1579524]
[1763670834212,0.12549276,86940.0,86909.0,0.1579524]
[1763670834213,0.14541,86924.0,86923.0,0.0115204]
[1763670834411,0.1473407,86924.0,86923.0,0.1589504]
[1763670834810,0.01708933,86931.0,86930.0,0.0115196]
[1763670835107,0.16249933,86931.0,86930.0,0.01371763]
[1763670835812,0.18193472,86931.0,86930.0,0.00219803]
[1763670836011,0.14541,86923.0,86922.0,0.01169326]
[1763670836214,0.14541,86923.0,86922.0,0.01389129]
[1763670836914,0.14541,86923.0,86922.0,0.00237059]
[1763670837413,0.14541,86923.0,86922.0,0.01389129]
[1763670837726,0.01943539,86931.0,86930.0,0.1579496]
[1763670838017,0.04105302,86933.0,86930.0,0.16014763]
[1763670838318,0.14541,86931.0,86930.0,0.00219803]
[1763670838716,0.16535274,86931.0,86930.0,0.00219803]
[1763670839417,0.20640576,86931.0,86930.0,0.00219803]
[1763670839717,0.20640576,86931.0,86922.0,0.00017256]
[1763670839718,0.14541,86923.0,86922.0,0.01169326]
[1763670840014,0.14541,86923.0,86922.0,0.01389129]
[1763670840205,0.14541,86923.0,86922.0,0.00237059]
[1763670840410,0.14541,86923.0,86922.0,0.00017256]
[1763670840917,0.18646302,86923.0,86922.0,0.00017256]
[1763670841120,0.14541,86923.0,86922.0,0.00017256]
[1763670841617,0.156934,86897.0,86879.0,0.03336]
[1763670841920,0.0704,86892.0,86891.0,0.1579548]
[1763670842116,0.0115257,86885.0,86861.0,0.0115287]
[1763670842424,0.0115257,86885.0,86879.0,0.0115263]
[1763670842615,0.04125726,86887.0,86871.0,0.00017256]
[1763670842816,0.14217,86875.0,86874.0,0.00231944]
[1763670843122,0.14217,86875.0,86874.0,0.00219803]
[1763670843513,0.06188589,86880.0,86874.0,0.00219803]
[1763670843514,0.04125726,86877.0,86876.0,0.14511]
[1763670843821,0.00017256,86888.0,86878.0,0.0115265]
[1763670843822,0.07187,86879.0,86878.0,0.0115265]
[1763670844008,0.06188589,86883.0,86882.0,0.085536]
[1763670844208,0.06188589,86884.0,86883.0,0.07401]
[1763670844413,0.00017256,86888.0,86871.0,0.00017256]
[1763670844414,0.0703,86883.0,86871.0,0.00017256]
[1763670844615,0.14217,86873.0,86872.0,0.00219803]
[1763670845020,0.14217,86873.0,86871.0,0.00017256]
[1763670845021,0.0115273,86872.0,86871.0,0.00017256]
[1763670845214,0.1536973,86872.0,86871.0,0.00017256]
[1763670845518,0.14217,86859.0,86858.0,0.0855391]
[1763670845720,0.04123931,86868.0,86862.0,0.0115286]
[1763670845914,0.14217,86865.0,86864.0,0.0115284]
[1763670846110,0.14217,86865.0,86864.0,0.00219803]
[1763670846615,0.14217,86865.0,86856.0,0.0115293]
[1763670846813,0.07187,86859.0,86858.0,0.0115292]
[1763670847121,0.16200384,86859.0,86858.0,0.01372723]
[1763670847624,0.16200384,86859.0,86858.0,0.00219803]
[1763670848009,0.16200384,86859.0,86858.0,0.00319803]
[1763670848212,0.16200384,86859.0,86858.0,0.01472723]
[1763670848413,0.01983384,86859.0,86858.0,0.15983723]
[1763670848614,0.0115281,86866.0,86862.0,0.0115286]
[1763670848823,0.14217,86864.0,86863.0,0.00219803]
[1763670849412,0.01959987,86866.0,86863.0,0.14730803]
[1763670849627,0.00017266,86873.0,86872.0,0.14511]
[1763670849628,0.04141197,86873.0,86872.0,0.14511]
[1763670849832,0.00017266,86873.0,86872.0,0.15883533]
[1763670850033,0.14217,86891.0,86890.0,0.0855349]
[1763670850239,0.14217,86891.0,86890.0,0.08773293]
[1763670850641,0.16208139,86891.0,86890.0,0.08773293]
[1763670851029,0.09178139,86891.0,86890.0,0.08773293]
[1763670851230,0.01991139,86891.0,86890.0,0.15883293]
[1763670851429,0.00017266,86899.0,86898.0,0.0115239]
[1763670851647,0.00017266,86899.0,86898.0,0.01372193]
[1763670851938,0.02009991,86899.0,86898.0,0.01372193]
[1763670852134,0.02081244,86905.0,86898.0,0.00219803]
[1763670852326,0.0955,86899.0,86898.0,0.00219803]
[1763670852526,0.1070237,86899.0,86898.0,0.00219803]
[1763670853528,0.12728127,86899.0,86898.0,0.00219803]
[1763670854640,0.11575757,86899.0,86898.0,0.00219803]
[1763670854936,0.11575757,86899.0,86898.0,0.14730803]
[1763670855131,0.06800757,86899.0,86898.0,0.14730803]
[1763670855333,0.02025757,86899.0,86898.0,0.14730803]
[1763670855532,0.04123931,86906.0,86905.0,0.0115229]
[1763670855735,0.04123931,86906.0,86905.0,0.20305093]
[1763670855941,0.00017266,86907.0,86906.0,0.14511]
[1763670856236,0.01977612,86907.0,86906.0,0.14730803]
[1763670856443,0.06752612,86907.0,86906.0,0.14730803]
[1763670857038,0.01977612,86907.0,86906.0,0.14730803]
[1763670857439,0.01687042,86907.0,86906.0,0.14730803]
[1763670857651,0.10310327,86939.0,86928.0,0.0115199]
[1763670857836,0.14419557,86947.0,86929.0,0.00219803]
[1763670857837,0.1070196,86930.0,86929.0,0.00219803]
[1763670858344,0.01937449,86930.0,86907.0,0.0115226]
[1763670858538,0.09256123,86931.0,86910.0,0.00017256]
[1763670858539,0.0955,86911.0,86910.0,0.00017256]
[1763670858732,0.0955,86911.0,86910.0,0.00237059]
[1763670859242,0.25019067,86920.0,86879.0,0.0557463]
[1763670859243,0.09032071,86915.0,86879.0,0.04422]
[1763670859543,0.10310327,86927.0,86892.0,0.0557446]
[1763670859849,0.0115225,86909.0,86905.0,0.04422]
[1763670860139,0.09516,86907.0,86906.0,0.00219803]
[1763670861038,0.09516,86899.0,86898.0,0.00017256]
[1763670861247,0.09516,86899.0,86898.0,0.00237059]
[1763670861548,0.09516,86899.0,86898.0,0.07638059]
[1763670862537,0.09516,86899.0,86898.0,0.00237059]
[1763670862740,0.09516,86899.0,86898.0,0.00017256]
[1763670863146,0.4,86899.0,86866.0,0.04422]
[1763670863340,0.0115262,86881.0,86868.0,0.0115278]
[1763670863645,0.25019067,86894.0,86868.0,0.0115278]
[1763670863646,0.25019067,86894.0,86869.0,0.00219803]
[1763670864051,0.09482,86874.0,86873.0,0.00017266]
[1763670864343,0.1063472,86874.0,86873.0,0.00237069]
[1763670864647,0.1063472,86874.0,86873.0,0.00017266]
[1763670866143,0.19695945,86874.0,86873.0,0.00017266]
[1763670866750,0.09482,86854.0,86853.0,0.04422]
[1763670866948,0.09482,86854.0,86853.0,0.04641803]
[1763670867252,0.11434391,86854.0,86853.0,0.13195783]
[1763670867447,0.06693391,86854.0,86853.0,0.20305783]
[1763670867646,0.01952391,86854.0,86853.0,0.20305783]
[1763670867849,0.04741,86854.0,86853.0,0.19152803]
[1763670868045,0.04741,86854.0,86840.0,0.04422]
[1763670868046,0.0115306,86848.0,86840.0,0.04422]
[1763670868241,0.25019067,86860.0,86841.0,0.00219803]
[1763670868539,0.1063513,86842.0,86841.0,0.00219803]
[1763670868848,0.09482,86842.0,86841.0,0.00219803]
[1763670869140,0.03160883,86854.0,86845.0,0.0115309]
[1763670869141,0.04741,86846.0,86845.0,0.0115309]
[1763670869345,0.04741,86846.0,86845.0,0.01372893]
[1763670869551,0.04741,86846.0,86845.0,0.00219803]
[1763670869742,0.09482,86846.0,86845.0,0.00219803]
[1763670870743,0.09482,86846.0,86845.0,0.01372893]
[1763670871147,0.01955707,86854.0,86845.0,0.01372883]
[1763670871348,0.0115293,86857.0,86848.0,0.0115305]
[1763670871652,0.0115293,86857.0,86849.0,0.00219803]
[1763670871850,0.12712,86850.0,86849.0,0.00219803]
[1763670872943,0.02016203,86854.0,86853.0,0.2106998]
[1763670873146,0.001,86857.0,86856.0,0.15099]
[1763670873454,0.02085054,86857.0,86856.0,0.15318803]
[1763670873646,0.12482,86857.0,86856.0,0.00219803]
[1763670873951,0.12382,86857.0,86856.0,0.00219803]
[1763670874146,0.14373004,86857.0,86840.0,0.04422]
[1763670874350,0.14373004,86857.0,86826.0,0.0115333]
[1763670874351,0.0115298,86853.0,86841.0,0.00219803]
[1763670874646,0.25019067,86851.0,86841.0,0.00219803]
[1763670874853,0.12382,86842.0,86841.0,0.00219803]
[1763670875953,0.1353513,86842.0,86841.0,0.00219803]
[1763670876251,0.06191,86842.0,86841.0,0.15318803]
[1763670876738,0.31210067,86851.0,86850.0,0.0115302]
[1763670877040,0.01991004,86857.0,86850.0,0.0115302]
[1763670877041,0.06191,86857.0,86856.0,0.07626]
[1763670877239,0.06191,86857.0,86856.0,0.15318803]
[1763670877442,0.14342148,86857.0,86856.0,0.15318803]
[1763670877854,0.01960148,86857.0,86856.0,0.16471743]
[1763670878049,0.00017266,86862.0,86860.0,0.07626]
[1763670878247,0.13552126,86862.0,86861.0,0.00219803]
[1763670879155,0.14382621,86862.0,86861.0,0.07845803]
[1763670879653,0.14382621,86862.0,86861.0,0.15318803]
[1763670880046,0.14382621,86862.0,86861.0,0.00219803]
[1763670880749,0.14482621,86862.0,86861.0,0.00219803]
[1763670880953,0.14482621,86862.0,86861.0,0.15318803]
[1763670882354,0.02100621,86862.0,86861.0,0.15318803]
[1763670884056,0.09356134,86875.0,86874.0,0.15099]
[1763670884355,0.09356134,86875.0,86874.0,0.16471503]
[1763670884555,0.17188134,86875.0,86874.0,0.15318803]
[1763670884764,0.07832,86875.0,86874.0,0.15318803]
[1763670885361,0.15279,86875.0,86874.0,0.00219803]
[1763670885559,0.15279,86867.0,86866.0,0.00017266]
[1763670885762,0.15279,86867.0,86866.0,0.00237069]
[1763670886468,0.15279,86867.0,86866.0,0.00017266]
[1763670886761,0.15379,86867.0,86866.0,0.00017266]
[1763670887167,0.21553471,86867.0,86866.0,0.00017266]
[1763670888366,0.15379,86867.0,86866.0,0.00017266]
[1763670888969,0.15279,86867.0,86866.0,0.00017266]
[1763670889264,0.15379,86867.0,86866.0,0.00017266]
[1763670890159,0.15279,86854.0,86853.0,0.04818]
[1763670890357,0.15279,86854.0,86853.0,0.20136803]
[1763670890558,0.07832,86854.0,86853.0,0.20136803]
[1763670890758,0.15279,86854.0,86853.0,0.20136803]
[1763670892166,0.15279,86854.0,86853.0,0.21289783]
[1763670892385,0.08249695,86858.0,86857.0,0.1625193]
[1763670892386,0.16081695,86858.0,86857.0,0.1625193]
[1763670892666,0.24681615,86858.0,86857.0,0.07845803]
[1763670893056,0.15279,86858.0,86857.0,0.07845803]
[1763670893264,0.15279,86858.0,86857.0,0.15318803]
[1763670893766,0.07832,86858.0,86857.0,0.15318803]
[1763670894557,0.08279513,86859.0,86858.0,0.1625192]
[1763670894759,0.08279513,86860.0,86858.0,0.16471723]
[1763670894960,0.08279513,86860.0,86859.0,0.15099]
[1763670895268,0.00017266,86862.0,86861.0,0.15099]
[1763670895467,0.00017266,86862.0,86861.0,0.15318803]
[1763670895778,0.15296266,86862.0,86861.0,0.00219803]
[1763670895963,0.15477859,86862.0,86861.0,0.0003821]
[1763670896164,0.0115315,86841.0,86835.0,0.0115321]
[1763670896366,0.1643214,86841.0,86840.0,0.15099]
[1763670896575,0.1643214,86841.0,86840.0,0.15210477]
[1763670896576,0.16613733,86841.0,86840.0,0.15210477]
[1763670896769,0.15460593,86841.0,86840.0,0.16363627]
[1763670897069,0.15460593,86841.0,86840.0,0.15210477]
[1763670898261,0.15460593,86841.0,86840.0,0.00111477]
[1763670898560,0.15460593,86841.0,86817.0,0.0115345]
[1763670898561,0.07832,86833.0,86832.0,0.19917]
[1763670898758,0.15460593,86833.0,86832.0,0.20028477]
[1763670900464,0.07832,86824.0,86823.0,0.19917]
[1763670900669,0.00181593,86824.0,86823.0,0.20028477]
[1763670900971,0.15460593,86824.0,86823.0,0.20028477]
[1763670901171,0.15279,86814.0,86813.0,0.15107101]
[1763670901368,0.00181593,86814.0,86813.0,0.15218578]
[1763670901870,0.15460593,86814.0,86813.0,0.15218578]
[1763670902270,0.17413942,86814.0,86813.0,0.15218578]
[1763670902565,0.02134942,86814.0,86813.0,0.15218578]
[1763670903157,0.06270744,86814.0,86813.0,0.15218578]
[1763670903360,0.01953349,86814.0,86813.0,0.15218578]
[1763670903568,0.04135802,86816.0,86815.0,0.14812]
[1763670903772,0.00017276,86822.0,86815.0,0.14812]
[1763670903773,0.04135802,86819.0,86818.0,0.14812]
[1763670904069,0.00017276,86822.0,86821.0,0.14812]
[1763670904373,0.15167869,86822.0,86821.0,0.14923477]
[1763670904574,0.17203117,86822.0,86821.0,0.14923477]
[1763670904974,0.21337679,86822.0,86821.0,0.00111477]
[1763670905172,0.17203117,86822.0,86821.0,0.00111477]
[1763670905371,0.214367,86822.0,86821.0,0.14923477]
[1763670905672,0.214367,86822.0,86784.0,0.03087801]
[1763670905673,0.0115343,86814.0,86784.0,0.03087801]
[1763670905888,0.06210268,86788.0,86787.0,0.06997]
[1763670906070,0.04182563,86788.0,86787.0,0.06997]
[1763670906269,0.04349575,86788.0,86787.0,0.14812]
[1763670906465,0.04129772,86791.0,86790.0,0.14812]
[1763670906674,0.00017276,86796.0,86795.0,0.14812]
[1763670906873,0.0024518,86796.0,86795.0,0.14812]
[1763670907371,0.09268412,86796.0,86795.0,0.14812]
[1763670907676,0.0024518,86796.0,86795.0,0.14812]
[1763670908773,0.09473256,86796.0,86795.0,0.14812]
[1763670909073,0.0024518,86796.0,86795.0,0.14812]
[1763670909270,0.0139884,86796.0,86795.0,0.14812]
[1763670909476,0.0115375,86789.0,86788.0,0.19141]
[1763670909666,0.01381654,86789.0,86788.0,0.19141]
[1763670910567,0.06999654,86789.0,86788.0,0.04329]
[1763670910968,0.00227904,86789.0,86779.0,0.19141]
[1763670911167,0.00227904,86789.0,86788.0,0.11326]
[1763670911168,0.16336885,86789.0,86788.0,0.11326]
[1763670911368,0.0115385,86782.0,86779.0,0.04329]
[1763670911565,0.00219803,86780.0,86779.0,0.19141]
[1763670911780,1.01e-06,86781.0,86780.0,0.1596587]
[1763670911984,0.10271501,86796.0,86795.0,0.14812]
[1763670912276,0.10491304,86796.0,86795.0,0.14812]
[1763670913377,0.10491304,86796.0,86788.0,0.14812]
[1763670913378,0.0848975,86789.0,86788.0,0.14812]
[1763670913583,0.0115387,86780.0,86779.0,0.19141]
[1763670913778,0.01373673,86780.0,86779.0,0.19141]
[1763670913972,0.00219803,86780.0,86779.0,0.19141]
[1763670914471,0.00219803,86780.0,86779.0,0.14812]
[1763670914871,0.00073267,86780.0,86779.0,0.15031803]
[1763670915477,0.15042267,86780.0,86779.0,0.00219803]
[1763670915686,0.15042267,86780.0,86750.0,0.14963332]
[1763670915687,0.00073267,86780.0,86750.0,0.0115427]
[1763670915976,0.00073267,86780.0,86732.0,0.0116628]
[1763670915977,0.1612315,86759.0,86758.0,0.00219803]
[1763670916186,0.16196417,86759.0,86758.0,0.00219803]
[1763670916777,0.15042267,86759.0,86758.0,0.00219803]
[1763670917280,0.00073267,86759.0,86758.0,0.15031803]
[1763670918283,0.15042267,86759.0,86758.0,0.00219803]
[1763670919083,0.09164965,86759.0,86758.0,0.15031803]
[1763670919988,0.17655115,86759.0,86758.0,0.15031803]
[1763670920173,0.25288115,86759.0,86758.0,0.00219803]
[1763670920381,0.0115428,86750.0,86721.0,0.0115464]
[1763670920682,0.0115416,86758.0,86749.0,0.06997]
[1763670920883,0.00073267,86750.0,86749.0,0.15031803]
[1763670921078,0.15042267,86750.0,86749.0,0.00219803]
[1763670921480,0.15042267,86750.0,86749.0,0.19360803]
[1763670921481,0.07409267,86750.0,86749.0,0.19360803]
[1763670921785,0.0205377,86750.0,86749.0,0.19360803]
[1763670922696,0.08284471,86793.0,86784.0,0.04329]
[1763670922884,0.06162877,86804.0,86803.0,0.14812]
[1763670923082,0.06162469,86805.0,86804.0,0.08034803]
[1763670923277,0.0115321,86830.0,86804.0,0.08034803]
[1763670923491,0.09128547,86830.0,86807.0,0.0115351]
[1763670923679,0.03548,86832.0,86808.0,0.00219803]
[1763670923680,0.02509928,86829.0,86808.0,0.00219803]
[1763670923890,0.01978299,86832.0,86831.0,0.14812]
[1763670924094,0.0250964,86838.0,86837.0,0.06997]
[1763670924417,0.03499,86844.0,86838.0,0.00219803]
[1763670924788,0.05455113,86844.0,86838.0,0.00219803]
[1763670925090,0.01956113,86844.0,86838.0,0.00219803]
[1763670925289,0.00017277,86846.0,86838.0,0.00219803]
[1763670925488,0.14969,86833.0,86832.0,0.00017277]
[1763670925888,0.14969,86833.0,86832.0,0.0023708]
[1763670926087,0.07336,86833.0,86832.0,0.0023708]
[1763670926293,0.001,86844.0,86832.0,0.0723408]
[1763670927086,0.02109221,86846.0,86832.0,0.0723408]
[1763670927887,0.14963332,86842.0,86832.0,0.0723408]
[1763670928087,0.02009221,86846.0,86832.0,0.0723408]
[1763670928292,0.14969,86833.0,86832.0,0.0023708]
[1763670928594,0.07336,86833.0,86832.0,0.0023708]
[1763670930182,0.17162803,86833.0,86805.0,0.0391]
[1763670930488,0.16943,86807.0,86781.0,0.0115385]